Cogmind - Beta 10.1 @@@ ROGUE MODE // 2020.09.28 @ 23:47:44 Player: Sukhoy Result: Destroyed by D-53 Grenadier with Mini Grenade Launcher Performance ------------- Evolutions (0) 0 Regions Visited (2) 400 Robots Destroyed (16) 80 Value Destroyed (520) 520 Prototype IDs (0) 0 Alien Tech Used (0) 0 Bonus (0) 0 TOTAL SCORE: 1000 Bonus ------- None Cogmind --------- Core Integrity 0/250 Matter 500/500 Energy 100/100 System Corruption 10% Temperature Cool (0) Movement Core (200) Ox3 Location -10/Mines Parts ------- > --- POWER (1) -------- (None) > --- PROPULSION (2) --- (None) > --- UTILITY (2) ------ Medium Storage Unit High-capacity Matter Pod > --- WEAPON (2) ------- (None) > --- INVENTORY (8) ---- Improved Ion Engine Light Nuclear Core Improved Heat Sink ECM Suite Particle Gun Particle Cannon Assault Rifle Peak State ------------ > --- POWER ------------ Light Nuclear Core > --- PROPULSION ------- Hover Unit Hover Unit > --- UTILITY ---------- Medium Storage Unit High-capacity Matter Pod > --- WEAPON ----------- EM Pulse Gun Assault Rifle > --- INVENTORY -------- Ion Engine Light Treads Light Treads Hover Unit Improved Heat Sink EM Pulse Gun Particle Cannon Assault Rifle [Rating: 10] Favorites ----------- Power Improved Ion Engine Engine Improved Ion Engine Power Core Light Nuclear Core Propulsion Light Treads Treads Light Treads Wheel Wheel Hover Unit Hover Unit Utility High-capacity Matter Pod Storage High-capacity Matter Pod Weapon Assault Rifle Energy Gun EM Pulse Gun Ballistic Gun Assault Rifle Build | -11 -10 -10 ------- Run | Scr Mat Min Slots Evolved . | . . . Power . | . . . Propulsion . | . . . Utility . | . . . Weapon . | . . . Parts Attached 28 | 3 21 4 Power 3 | . 3 . Engine 2 | . 2 . Core 1 | . 1 . Reactor . | . . . Propulsion 13 | . 10 3 Treads 6 | . 4 2 Leg . | . . . Wheel 5 | . 4 1 Hover 2 | . 2 . Flight . | . . . Utility 6 | 1 5 . Device . | . . . Storage 6 | 1 5 . Processor . | . . . Hackware . | . . . Protection . | . . . Artifact . | . . . Weapon 6 | 2 3 1 Energy Gun 3 | . 2 1 Energy Cannon . | . . . Ballistic Gun 3 | 2 1 . Ballistic Cannon . | . . . Launcher . | . . . Special Weapon . | . . . Impact Weapon . | . . . Slashing Weapon . | . . . Piercing Weapon . | . . . Special Melee Weapon . | . . . Unidentified Prototypes . | . . . Parts Lost 10 | . 2 8 Power 1 | . . 1 Propulsion 5 | . 1 4 Utility . | . . . Weapon 4 | . 1 3 Highest Loss Streak 5 | . 2 5 Average Slot Usage (%) 91 | . 88 94 Engine 11 | . 8 13 Core 2 | . 4 . Treads 13 | . 6 21 Wheel 7 | . 14 . Hover 3 | . 5 2 Storage 24 | . 21 28 Energy Gun 10 | . 7 13 Ballistic Gun 16 | . 19 13 Naked Turns . | . . . Heaviest Build 25 | 8 25 23 Greatest Support 40 | 3 40 40 Greatest Overweight (x) 7 | 2 2 7 Average Overweight (x) . | 1 . . Largest Inventory Capacity 12 | 6 12 8 Average Capacity 7 | 5 7 8 Most Carried 8 | 6 8 8 Average Carried 5 | 5 5 5 Final Capacity 8 | 6 8 8 Final Carried 8 | 6 8 7 Class Distribution -------------------- 100% | Mutant Dominant Class ---------------- Mutant | -10/Materials Mutant | -10/Mines Resources | -11 -10 -10 ----------- Run | Scr Mat Min Matter Collected 838 | 230 284 324 Remotely . | . . . Salvage Created 702 | . 284 418 Parts 38 | . 17 21 Haulers Intercepted . | . . . Recyclers Shooed 2 | . . 2 Parts Field Recycled . | . . . Retrieved Matter . | . . . Parts Self-Destructed . | . . . Prevented . | . . . Kills | -11 -10 -10 ------- Run | Scr Mat Min Combat Hostiles Destroyed 13 | . 7 6 Guns 13 | . 7 6 Classes Destroyed 3 | . 1 2 Builder 2 | . . 2 Recycler 1 | . . 1 Grunt 13 | . 7 6 Best Kill Streak 4 | . 3 4 Combat Bots Only 3 | . 3 2 Max Kills in Single Turn 1 | . 1 1 Gunslinging . | . . . Exploded . | . . . Melee . | . . . Uniques/NPCs Destroyed . | . . . Combat | -11 -10 -10 -------- Run | Scr Mat Min Damage Taken 1192 | . 224 968 Core 265 | . 10 255 Absorbed by Shields . | . . . Core Remaining (%) 100 | 100 . . Volleys Fired 56 | . 18 38 Largest 2 | . 2 2 Hottest 70 | . 70 60 Shots Fired 101 | . 31 70 Gun 101 | . 31 70 Cannon . | . . . Launcher . | . . . Special . | . . . Kinetic 61 | . 23 38 Thermal 8 | . 8 . Explosive . | . . . Electromagnetic 32 | . . 32 Robot Hit Streak 17 | . 17 13 Robot Miss Streak 3 | . 3 2 Penetration Max . | . . . Secondary Targets 2 | . 1 1 Max Gunslinging Chain 1 | . 1 1 Shots Hit Robots 72 | . 25 47 Core Hits 32 | . 13 19 Critical Hits . | . . . Critical Kills . | . . . Critical Parts Destroyed . | . . . Melee Attacks . | . . . Impact . | . . . Slashing . | . . . Piercing . | . . . Sneak Attacks . | . . . Combat Hostiles . | . . . Follow-up Attacks . | . . . Damage Inflicted 983 | . 328 655 Guns 939 | . 328 611 Cannons . | . . . Explosions 44 | . . 44 Melee . | . . . Ramming . | . . . Kinetic 522 | . 225 297 Thermal 147 | . 103 44 Explosive . | . . . Electromagnetic 314 | . . 314 Impact . | . . . Slashing . | . . . Piercing . | . . . Highest Corruption 10 | . . 10 Average Corruption 6 | . . 6 Corruption Purged . | . . . Effects 1 | . . 1 Message Errors 1 | . . 1 Overload Shots . | . . . Overflow Damage . | . . . Projectiles . | . . . Explosions . | . . . Melee . | . . . Knockbacks . | . . . Impact . | . . . Kinetic . | . . . Secondary . | . . . Self-Inflicted Damage 19 | . . 19 Shots 1 | . . 1 Rammed . | . . . Targets Rammed . | . . . Kicked . | . . . Crushed . | . . . Highest Temperature 195 | . 87 195 Average Temperature 68 | . 40 77 Received Heat Transfer 487 | . 123 364 Siege Activations . | . . . Robots Corrupted . | . . . Combat Hostiles . | . . . Parts Fried . | . . . Impact Corruptions . | . . . Robots Melted . | . . . Combat Hostiles . | . . . Parts Melted . | . . . Heat Transferred 396 | . 296 100 Parts Sabotaged . | . . . Parts Stolen . | . . . Parts Stripped . | . . . Power Chain Reactions 1 | . . 1 Missiles Intercepted . | . . . Alert | -11 -10 -10 ------- Run | Scr Mat Min Peak Influence 222 | . 185 222 Initial 72 | . . 72 Average 97 | . 58 153 Maximum Alert Level 1 | . . 1 Low Security (%) 83 | 100 100 64 Level 1 16 | . . 35 Level 2 . | . . . Level 3 . | . . . Level 4 . | . . . Level 5 . | . . . High Security . | . . . Max Security . | . . . Squads Dispatched 3 | . 3 . Investigation 1 | . 1 . Extermination . | . . . Reinforcement 2 | . 2 . Assault . | . . . Garrison . | . . . Intercept . | . . . Construction Impeded . | . . . Haulers Reinforced . | . . . Stealth | -11 -10 -10 --------- Run | Scr Mat Min Distress Signals . | . . . Communications Jammed . | . . . Distress Signals . | . . . Times Spotted 40 | . 11 29 Peak Tracking Total 22 | . 3 22 Tactical Retreats . | . . . Traps | -11 -10 -10 ------- Run | Scr Mat Min Traps Triggered 1 | . 1 . Indirectly . | . . . Trap Hack Attempts . | . . . Triggered . | . . . Disarmed . | . . . Reprogrammed . | . . . Reused . | . . . Traps Extracted . | . . . Installed . | . . . Triggered . | . . . Machines | -11 -10 -10 ---------- Run | Scr Mat Min Machines Disabled 1 | . . 1 Max in Single Turn 1 | . . 1 Machines Sabotaged . | . . . Garrisons Compromised . | . . . Overloaded Fab Kills . | . . . Fab Network Shutdowns . | . . . Hacking | -11 -10 -10 --------- Run | Scr Mat Min Machines Accessed 1 | . 1 . Terminals 1 | . 1 . Fabricators . | . . . Repair Stations . | . . . Recycling Units . | . . . Scanalyzers . | . . . Garrison Access . | . . . Total Hacks 3 | . 3 . Successful 2 | . 2 . Failed 1 | . 1 . Catastrophic . | . . . Database Lockouts . | . . . Manual . | . . . Terminals 3 | . 3 . Fabricators . | . . . Repair Stations . | . . . Recycling Units . | . . . Scanalyzers . | . . . Garrison Access . | . . . Terminal Hacks 2 | . 2 . Scanalyzer Index 1 | . 1 . Hauler Manifests 1 | . 1 . Fabricator Hacks . | . . . Repair Station Hacks . | . . . Recycling Unit Hacks . | . . . Scanalyzer . | . . . Garrison Access Hacks . | . . . Unauthorized Hacks . | . . . Terminals . | . . . Fabricators . | . . . Repair Stations . | . . . Recycling Units . | . . . Scanalyzers . | . . . Garrison Access . | . . . Data Cores Recovered . | . . . Used . | . . . Hacking Detections 1 | . 1 . Full Trace Events 1 | . 1 . Feedback Events . | . . . Feedback Blocked . | . . . Robot Schematics Acquired . | . . . Robots Built . | . . . Matter . | . . . Time . | . . . Total Robot Build Rating . | . . . Part Schematics Acquired . | . . . Parts Built . | . . . Matter . | . . . Time . | . . . Total Part Build Rating . | . . . Parts Repaired . | . . . Time . | . . . Parts Recycled . | . . . Recycled Matter . | . . . Retrieved Matter . | . . . Retrieved Components . | . . . Parts Scanalyzed . | . . . Part Schematics Acquired . | . . . Parts Damaged . | . . . Bothacking | -11 -10 -10 ------------ Run | Scr Mat Min Used RIF Installer . | . . . Robots Hacked . | . . . Non-combat . | . . . Combat . | . . . Robot Hacks Applied . | . . . Relay Couplers Released . | . . . Robots Rewired . | . . . Allies Hacked . | . . . Hacks Repelled . | . . . Allies | -11 -10 -10 -------- Run | Scr Mat Min Total Allies . | . . . Largest Group . | . . . Highest-Rated Group . | . . . Highest-Rated Ally . | . . . Total Orders . | . . . Ally Attacks . | . . . Total Damage . | . . . Kills . | . . . Allies Corrupted . | . . . Allies Melted . | . . . Intel | -11 -10 -10 ------- Run | Scr Mat Min Robot Analysis Total . | . . . Derelict Logs Recovered . | . . . Drone Launches . | . . . Drone Recoveries . | . . . Exploration | -11 -10 -10 ------------- Run | Scr Mat Min Turns Passed 833 | 68 381 384 Spaces Moved 462 | 48 256 158 Core 54 | 48 . 6 Treads 192 | . 46 146 Legs . | . . . Wheels 157 | . 157 . Hover 59 | . 53 6 Flight . | . . . Fastest Speed 50 | 50 90 116 Average Speed 129 | 121 108 164 Slowest Speed 400 | 150 160 400 Overloaded Moves . | . . . Propulsion Burnouts . | . . . Robots Hopped . | . . . Cave-ins Triggered . | . . . Exploration Rate (%) 27 | 3 43 35 Regions Visited 2 Branch Regions 1 Pre-discovered Areas . | . . . Known Exits Taken . | . . . Unknown Exits Taken 2 | 1 1 . Scrap Searched 1 | . . 1 Spaces Dug . | . . . Terrain Destroyed 5 | . . 5 Melee . | . . . Projectile . | . . . AOE 5 | . . 5 Terrain Rammed . | . . . Walls Destroyed . | . . . Machines Disabled . | . . . Actions | -11 -10 -10 --------- Run | Scr Mat Min Total 592 | 56 324 212 Wait 16 | . 10 6 Move 460 | 47 255 158 Hop . | . . . Pick Up 24 | 6 14 4 Fast Attach 3 | 3 . . Attach 11 | . 8 3 Detach . | . . . Swap 14 | . 13 1 Drop 8 | . 6 2 Fire 56 | . 18 38 Melee . | . . . Ram . | . . . Kick . | . . . Crush . | . . . Escape Stasis . | . . . Rewire . | . . . Trap . | . . . Miscellaneous . | . . . Route ------- -11/Scrapyard -10/Materials (discovered 2 exits: [*Mat] / [*Min]) -10/Mines History --------- Turn | Location | Event 15 | -11/Scrapyard | Discovered new exit (range 16) 69 | -11/Scrapyard | Entered Materials 313 | -10/Materials | Build established: Mutant 337 | -10/Materials | Discovered new exit (range 3) 405 | -10/Materials | Discovered new exit (range 11) 450 | -10/Materials | Entered Mines 517 | -10/Mines | Lost 3 parts (2n1w) 809 | -10/Mines | Assembled infested the area 827 | -10/Mines | Core integrity fell below 50% 831 | -10/Mines | System corruption reached 10% 833 | -10/Mines | Core integrity fell below 20% 834 | -10/Mines | Destroyed by D-53 Grenadier with Mini Grenade Launcher Last Messages --------------- as-34900 destroyed. as-73573 destroyed. as-07912 destroyed. as-33756 destroyed. as-49412 destroyed. EM Pulse Gun destroyed. System corrupted by crushing effect (+1). as-36335 destroyed. Lgt. Treads destroyed. System corrupted by crushing effect (+5). X&NC0R2/WJFB=KBHX4PRL1>BBDCM as-05104 destroyed. as-40061 destroyed. as-33583 destroyed. as-52110 destroyed. as-25552 destroyed. as-45492 destroyed. as-21126 destroyed. as-98674 sneak attacks. D-53 Grenadier destroyed. Map ----- +----------------------------------------------------+ | """ """ """ #???# ### ?????????????? | | #???# ?????????????? | | # #???# ### ?????????????? | | ############# #???# #???? ???????????????? | | ????????????# =##### ##?????? ??????????????? | | ????????????# #### #????????? ???????????????? | | ????????????# = = #?????????????????????????? | | ????????????# !%[ " #?????????????????????????? | | ????????????####### %"## ???????????????????????? | | ????????????####?## " # ???????????????????????? | | ?????????????????# # ???????????????????????? | | ?????????????????# ???????????????????????? | | ?????????????????## ???????????????????????? | | ??????????????????# # a ???????????????????????? | | ??????????????????# r* #???????????????????????? | | ??????????????????# a% #????###????????????????? | | ??????????????????## aa #???? #????????????????? | | ??????????????????### !d%##?? #????????????????? | | ??????????????????# ![!### #????????????????? | | ?????????????????## a * #?????????????????? | | ??????????????#### aa ##????????????????? | | ??????????????# % ##### ?????????? | | ??????# ####### % ?????????? | | *%= # ?????????? | | ! $ # ## ??????????? | | ??######### ####### @ ##?? ???????????? | | ??????????#???????# ##?????????????????? | | ??????????????????### #??????????????????? | | ????????????????????## ## #??????????????????? | | ?????????????????????## ##? #??????????????????? | | ??????????????????????####?? ?????????????????? | | ????????????????????????????? ###????????????????? | | ??????????????????????????????#??????????????????? | | ?????????????????????????????????????????????????? | | ?????????????????????????????????????????????????? | | ?????????????????????????????????????????????????? | | ?????????????????????????????????????????????????? | | ?????????????????????????????????????????????????? | | ?????????????????????????????????????????????????? | | ?????????????????????????????????????????????????? | | ?????????????????????????????????????????????????? | | ?????????????????????????????????????????????????? | | ?????????????????????????????????????????????????? | | ?????????????????????????????????????????????????? | | ?????????????????????????????????????????????????? | | ?????????????????????????????????????????????????? | | ?????????????????????????????????????????????????? | | | | | | | +----------------------------------------------------+ Best States ------------- Heat Dissipation 25 Energy Generation 14 Energy Capacity 265 Matter Stores 500 Matter Capacity 500 Sight Range 16 Terrain Scan Density 10 Evasion (%) 50 Recoil Reduction 2 Item Schematics ----------------- None Robot Schematics ------------------ None Fabricated ------------ Nothing Alien Tech Used ----------------- None Achievements -------------- Hunted Challenges ------------ None Game ------ Seed SalvageBurstSheargun Manual? 0 Play Time 00:15:50 Cumulative 10.1 hours Start 2020.09.27 @ 12:06:31 End 2020.09.28 @ 23:47:44 Sessions 3 Manual Loads 0 Difficulty Rogue Special Mode None Game No. 10 Rogue 10 Adventurer 0 Explorer 0 Win Type - Total 0 Types 0/0/0/0/0/0/0/0/0 Lore% 3 Gallery% 16 Achievement% 14 Wizard Run 0 Options --------- ASCII 0 Keyboard 0 Movement Mouse Keybinds 0 Fullscreen 1 Font 18/TerminusBold Map View 76x50 Tactical HUD 0 Map Filters NONE Filters NONE Steam 1 RUN: 14784815-72d7-42df-ad1e-29139bcf21cb